[Event "Titled Tuesday Blitz April 19 Early 2022"]
[White "Shirov, Alexei"]
[Black "Ianov, Viktor"]
[WhiteFideId "2209390"]
[BlackFideId "14102730"]
[WhiteElo "2678"]
[BlackElo "2161"]
[Result "1-0"]
[Round "08"]
[TimeControl "180+1"]
[Date "2022.04.19"]
[WhiteClock "0:00:39"]
[BlackClock "0:00:41"]

1. e4 {[%clk 0:03:00]}  d6 {[%clk 0:02:57]} 2. d4 {[%clk 0:03:00]}  Nf6 {[%clk 0:02:55]} 3. Nc3 {[%clk 0:03:00]}  c6 {[%clk 0:02:56]} 4. f4 {[%clk 0:02:59]}  Qb6 {[%clk 0:02:55]} 5. Nf3 {[%clk 0:02:56]}  Bg4 {[%clk 0:02:54]} 6. Bd3 {[%clk 0:02:28]}  e5 {[%clk 0:02:50]} 7. dxe5 {[%clk 0:02:14]}  dxe5 {[%clk 0:02:49]} 8. h3 {[%clk 0:02:14]}  Bxf3 {[%clk 0:02:47]} 9. Qxf3 {[%clk 0:02:13]}  Nbd7 {[%clk 0:02:46]} 10. f5 {[%clk 0:02:11]}  Bc5 {[%clk 0:02:40]} 11. g4 {[%clk 0:02:10]}  h6 {[%clk 0:02:39]} 12. h4 {[%clk 0:02:09]}  O-O-O {[%clk 0:02:26]} 13. Bd2 {[%clk 0:01:52]}  h5 {[%clk 0:02:22]} 14. g5 {[%clk 0:01:40]}  Ng4 {[%clk 0:02:22]} 15. O-O-O {[%clk 0:01:39]}  Be3 {[%clk 0:02:18]} 16. Bxe3 {[%clk 0:01:35]}  Qxe3+ {[%clk 0:02:17]} 17. Qxe3 {[%clk 0:01:33]}  Nxe3 {[%clk 0:02:17]} 18. Rdg1 {[%clk 0:01:29]}  Nc5 {[%clk 0:02:12]} 19. Be2 {[%clk 0:01:27]}  Rd4 {[%clk 0:02:01]} 20. Rh3 {[%clk 0:01:22]}  Nc4 {[%clk 0:01:55]} 21. Bxc4 {[%clk 0:01:20]}  Rxc4 {[%clk 0:01:54]} 22. Re3 {[%clk 0:01:19]}  a5 {[%clk 0:01:46]} 23. b3 {[%clk 0:01:14]}  Rd4 {[%clk 0:01:44]} 24. Rge1 {[%clk 0:01:07]}  Rhd8 {[%clk 0:01:42]} 25. Nd1 {[%clk 0:01:05]}  b5 {[%clk 0:01:35]} 26. Nf2 {[%clk 0:01:03]}  b4 {[%clk 0:01:32]} 27. R1e2 {[%clk 0:00:57]}  Kc7 {[%clk 0:01:31]} 28. c3 {[%clk 0:00:57]}  R4d7 {[%clk 0:01:25]} 29. Rc2 {[%clk 0:00:55]}  Kb6 {[%clk 0:01:23]} 30. cxb4 {[%clk 0:00:53]}  axb4 {[%clk 0:01:22]} 31. Rc4 {[%clk 0:00:53]}  Kb5 {[%clk 0:01:22]} 32. Re2 {[%clk 0:00:53]}  Rd4 {[%clk 0:01:16]} 33. Rxd4 {[%clk 0:00:48]}  Rxd4 {[%clk 0:01:15]} 34. Rd2 {[%clk 0:00:48]}  Rxd2 {[%clk 0:01:03]} 35. Kxd2 {[%clk 0:00:47]}  f6 {[%clk 0:01:02]} 36. Ke3 {[%clk 0:00:47]}  Nd7 {[%clk 0:00:58]} 37. g6 {[%clk 0:00:44]}  c5 {[%clk 0:00:53]} 38. Nh1 {[%clk 0:00:43]}  c4 {[%clk 0:00:49]} 39. Ng3 {[%clk 0:00:43]}  c3 {[%clk 0:00:49]} 40. Nxh5 {[%clk 0:00:41]}  Nc5 {[%clk 0:00:48]} 41. Ng3 {[%clk 0:00:40]}  Kc6 {[%clk 0:00:46]} 42. h5 {[%clk 0:00:39]}  Kd7 {[%clk 0:00:41]} 43. h6 {[%clk 0:00:39]} 1-0


[Site "https://www.chess.com"]

[Event "Titled Tuesday Blitz April 19 Early 2022"]
[White "Shtyka, Sergey"]
[Black "Winkels, Marcel"]
[WhiteFideId "4138465"]
[BlackFideId "1003887"]
[WhiteElo "2014"]
[BlackElo "1900"]
[Result "1/2-1/2"]
[Round "08"]
[TimeControl "180+1"]
[Date "2022.04.19"]
[WhiteClock "0:00:15"]
[BlackClock "0:00:03"]

1. e4 {[%clk 0:03:00]}  c5 {[%clk 0:02:58]} 2. Nf3 {[%clk 0:03:01]}  d6 {[%clk 0:02:58]} 3. d4 {[%clk 0:03:01]}  cxd4 {[%clk 0:02:59]} 4. Nxd4 {[%clk 0:03:02]}  Nf6 {[%clk 0:02:58]} 5. Nc3 {[%clk 0:03:03]}  a6 {[%clk 0:02:59]} 6. Bc4 {[%clk 0:03:02]}  e6 {[%clk 0:02:58]} 7. O-O {[%clk 0:02:58]}  b5 {[%clk 0:02:57]} 8. Bd3 {[%clk 0:02:58]}  Be7 {[%clk 0:02:52]} 9. a3 {[%clk 0:02:59]}  O-O {[%clk 0:02:48]} 10. Be3 {[%clk 0:02:59]}  Qc7 {[%clk 0:02:47]} 11. f4 {[%clk 0:02:59]}  Bb7 {[%clk 0:02:42]} 12. Qf3 {[%clk 0:03:00]}  Nc6 {[%clk 0:02:39]} 13. Rae1 {[%clk 0:03:00]}  Nxd4 {[%clk 0:02:29]} 14. Bxd4 {[%clk 0:03:01]}  e5 {[%clk 0:02:29]} 15. Be3 {[%clk 0:03:01]}  Rfd8 {[%clk 0:02:18]} 16. f5 {[%clk 0:02:56]}  d5 {[%clk 0:02:08]} 17. exd5 {[%clk 0:02:55]}  Nxd5 {[%clk 0:02:05]} 18. Nxd5 {[%clk 0:02:54]}  Bxd5 {[%clk 0:02:04]} 19. Be4 {[%clk 0:02:52]}  Qc6 {[%clk 0:01:41]} 20. Bxd5 {[%clk 0:02:46]}  Qxd5 {[%clk 0:01:40]} 21. Qxd5 {[%clk 0:02:44]}  Rxd5 {[%clk 0:01:38]} 22. Rd1 {[%clk 0:02:44]}  Rad8 {[%clk 0:01:36]} 23. Rxd5 {[%clk 0:02:44]}  Rxd5 {[%clk 0:01:35]} 24. Kf2 {[%clk 0:02:39]}  Bc5 {[%clk 0:01:32]} 25. Bxc5 {[%clk 0:02:27]}  Rxc5 {[%clk 0:01:30]} 26. c3 {[%clk 0:02:27]}  Rd5 {[%clk 0:01:29]} 27. Ke3 {[%clk 0:02:27]}  f6 {[%clk 0:01:29]} 28. Rc1 {[%clk 0:02:19]}  Kf7 {[%clk 0:01:23]} 29. c4 {[%clk 0:02:17]}  Rc5 {[%clk 0:01:23]} 30. b3 {[%clk 0:02:14]}  Ke7 {[%clk 0:01:21]} 31. Kd3 {[%clk 0:02:13]}  Rc7 {[%clk 0:01:17]} 32. c5 {[%clk 0:02:11]}  Kd7 {[%clk 0:01:15]} 33. b4 {[%clk 0:02:09]}  Kc6 {[%clk 0:01:14]} 34. g4 {[%clk 0:02:00]}  Rd7+ {[%clk 0:01:14]} 35. Ke3 {[%clk 0:02:00]}  Rd4 {[%clk 0:01:14]} 36. h3 {[%clk 0:01:59]}  h6 {[%clk 0:01:12]} 37. Rg1 {[%clk 0:01:54]}  a5 {[%clk 0:01:10]} 38. Rb1 {[%clk 0:01:43]}  a4 {[%clk 0:00:59]} 39. Rg1 {[%clk 0:01:40]}  Rc4 {[%clk 0:00:54]} 40. Kd3 {[%clk 0:01:40]}  Rf4 {[%clk 0:00:52]} 41. Ke3 {[%clk 0:01:37]}  Rc4 {[%clk 0:00:51]} 42. Kd3 {[%clk 0:01:30]}  Kd5 {[%clk 0:00:43]} 43. h4 {[%clk 0:01:28]}  e4+ {[%clk 0:00:42]} 44. Kd2 {[%clk 0:01:27]}  Kd4 {[%clk 0:00:42]} 45. g5 {[%clk 0:01:20]}  hxg5 {[%clk 0:00:40]} 46. hxg5 {[%clk 0:01:20]}  e3+ {[%clk 0:00:34]} 47. Ke2 {[%clk 0:01:20]}  Rc2+ {[%clk 0:00:33]} 48. Kf3 {[%clk 0:01:20]}  e2 {[%clk 0:00:18]} 49. gxf6 {[%clk 0:01:18]}  gxf6 {[%clk 0:00:17]} 50. Rg4+ {[%clk 0:01:01]}  Kd3 {[%clk 0:00:16]} 51. Re4 {[%clk 0:01:01]}  Ra2 {[%clk 0:00:11]} 52. Re3+ {[%clk 0:00:51]}  Kd4 {[%clk 0:00:09]} 53. c6 {[%clk 0:00:50]}  Rc2 {[%clk 0:00:08]} 54. Rxe2 {[%clk 0:00:43]}  Rxc6 {[%clk 0:00:07]} 55. Re6 {[%clk 0:00:43]}  Rc3+ {[%clk 0:00:05]} 56. Kf4 {[%clk 0:00:43]}  Rxa3 {[%clk 0:00:04]} 57. Rxf6 {[%clk 0:00:42]}  Ra1 {[%clk 0:00:04]} 58. Rb6 {[%clk 0:00:25]}  Kc4 {[%clk 0:00:03]} 59. f6 {[%clk 0:00:25]}  Kxb4 {[%clk 0:00:03]} 60. Ke5 {[%clk 0:00:23]}  Rf1 {[%clk 0:00:04]} 61. Kd4 {[%clk 0:00:13]}  a3 {[%clk 0:00:04]} 62. Ra6 {[%clk 0:00:14]}  Kb3 {[%clk 0:00:03]} 63. Kc5 {[%clk 0:00:14]}  b4 {[%clk 0:00:04]} 64. Rb6 {[%clk 0:00:15]}  a2 {[%clk 0:00:04]} 65. Rxb4+ {[%clk 0:00:15]}  Kc3 {[%clk 0:00:04]} 66. Ra4 {[%clk 0:00:14]}  a1=Q {[%clk 0:00:03]} 67. Rxa1 {[%clk 0:00:13]}  Rxa1 {[%clk 0:00:03]} 68. Kd6 {[%clk 0:00:13]}  Rf1 {[%clk 0:00:03]} 69. Ke7 {[%clk 0:00:13]}  Kd4 {[%clk 0:00:04]} 70. f7 {[%clk 0:00:14]}  Re1+ {[%clk 0:00:04]} 71. Kd7 {[%clk 0:00:14]}  Rf1 {[%clk 0:00:03]} 72. Ke7 {[%clk 0:00:14]}  Rxf7+ {[%clk 0:00:03]} 73. Kxf7 {[%clk 0:00:15]} 1/2-1/2


[Site "https://www.chess.com"]

[Event "Titled Tuesday Blitz April 19 Early 2022"]
[White "Shuvalov, Evgenij"]
[Black "Kahlert, Thomas"]
[WhiteFideId "4187237"]
[BlackFideId "4625242"]
[WhiteElo "2130"]
[BlackElo "2228"]
[Result "1-0"]
[Round "08"]
[TimeControl "180+1"]
[Date "2022.04.19"]
[WhiteClock "0:00:43"]
[BlackClock "0:01:50"]

1. e4 {[%clk 0:03:00]}  e5 {[%clk 0:02:59]} 2. Nf3 {[%clk 0:02:59]}  Nc6 {[%clk 0:02:59]} 3. Bc4 {[%clk 0:02:59]}  Nf6 {[%clk 0:02:58]} 4. Ng5 {[%clk 0:02:56]}  d5 {[%clk 0:02:57]} 5. exd5 {[%clk 0:02:56]}  Na5 {[%clk 0:02:56]} 6. Bb5+ {[%clk 0:02:54]}  Bd7 {[%clk 0:02:56]} 7. Qe2 {[%clk 0:02:41]}  Be7 {[%clk 0:02:48]} 8. Nc3 {[%clk 0:02:36]}  O-O {[%clk 0:02:47]} 9. Bxd7 {[%clk 0:02:35]}  Qxd7 {[%clk 0:02:46]} 10. Nf3 {[%clk 0:02:19]}  Nxd5 {[%clk 0:02:39]} 11. Nxe5 {[%clk 0:02:12]}  Qe6 {[%clk 0:02:39]} 12. Nxd5 {[%clk 0:02:09]}  Qxd5 {[%clk 0:02:38]} 13. O-O {[%clk 0:02:06]}  Bd6 {[%clk 0:02:36]} 14. Nf3 {[%clk 0:02:02]}  Rfe8 {[%clk 0:02:36]} 15. Qd1 {[%clk 0:02:02]}  Rad8 {[%clk 0:02:34]} 16. d3 {[%clk 0:02:00]}  Nc6 {[%clk 0:02:33]} 17. Be3 {[%clk 0:01:54]}  a6 {[%clk 0:02:31]} 18. Qd2 {[%clk 0:01:49]}  Qh5 {[%clk 0:02:30]} 19. Bf4 {[%clk 0:01:43]}  Bxf4 {[%clk 0:02:25]} 20. Qxf4 {[%clk 0:01:44]}  Re2 {[%clk 0:02:22]} 21. Rac1 {[%clk 0:01:41]}  Rd7 {[%clk 0:02:20]} 22. Rfe1 {[%clk 0:01:37]}  Rxe1+ {[%clk 0:02:20]} 23. Rxe1 {[%clk 0:01:37]}  h6 {[%clk 0:02:21]} 24. Re8+ {[%clk 0:01:34]}  Kh7 {[%clk 0:02:20]} 25. Qe4+ {[%clk 0:01:34]}  Qg6 {[%clk 0:02:20]} 26. Qxg6+ {[%clk 0:01:33]}  Kxg6 {[%clk 0:02:20]} 27. Ne5+ {[%clk 0:01:25]}  Nxe5 {[%clk 0:02:20]} 28. Rxe5 {[%clk 0:01:26]}  Kf6 {[%clk 0:02:20]} 29. Re4 {[%clk 0:01:26]}  Rd6 {[%clk 0:02:18]} 30. f4 {[%clk 0:01:25]}  g6 {[%clk 0:02:18]} 31. Kf2 {[%clk 0:01:25]}  h5 {[%clk 0:02:18]} 32. Ke3 {[%clk 0:01:24]}  Rb6 {[%clk 0:02:17]} 33. b3 {[%clk 0:01:23]}  Rc6 {[%clk 0:02:17]} 34. Rc4 {[%clk 0:01:21]}  Re6+ {[%clk 0:02:17]} 35. Re4 {[%clk 0:01:19]}  Rc6 {[%clk 0:02:16]} 36. Kd2 {[%clk 0:01:20]}  Kf5 {[%clk 0:02:15]} 37. g3 {[%clk 0:01:14]}  Kg4 {[%clk 0:02:12]} 38. d4 {[%clk 0:01:06]}  Kh3 {[%clk 0:02:09]} 39. Re2 {[%clk 0:01:05]}  h4 {[%clk 0:02:09]} 40. gxh4 {[%clk 0:01:04]}  Kxh4 {[%clk 0:02:09]} 41. d5 {[%clk 0:01:03]}  Rd6 {[%clk 0:02:07]} 42. c4 {[%clk 0:01:01]}  Kg4 {[%clk 0:02:07]} 43. Re7 {[%clk 0:01:00]}  c6 {[%clk 0:02:04]} 44. Rxf7 {[%clk 0:00:59]}  cxd5 {[%clk 0:02:04]} 45. c5 {[%clk 0:00:59]}  Rc6 {[%clk 0:02:02]} 46. b4 {[%clk 0:00:59]}  a5 {[%clk 0:02:02]} 47. a3 {[%clk 0:00:59]}  axb4 {[%clk 0:02:02]} 48. axb4 {[%clk 0:00:59]}  b6 {[%clk 0:02:03]} 49. cxb6 {[%clk 0:00:55]}  Rxb6 {[%clk 0:02:03]} 50. Kc3 {[%clk 0:00:56]}  Rc6+ {[%clk 0:02:03]} 51. Kb3 {[%clk 0:00:55]}  Rc4 {[%clk 0:02:00]} 52. b5 {[%clk 0:00:54]}  Rc1 {[%clk 0:01:57]} 53. Kb4 {[%clk 0:00:52]}  d4 {[%clk 0:01:54]} 54. Rd7 {[%clk 0:00:47]}  Kxf4 {[%clk 0:01:54]} 55. Rxd4+ {[%clk 0:00:47]}  Kf3 {[%clk 0:01:53]} 56. Rd2 {[%clk 0:00:46]}  g5 {[%clk 0:01:51]} 57. b6 {[%clk 0:00:45]}  Rb1+ {[%clk 0:01:51]} 58. Kc5 {[%clk 0:00:45]}  g4 {[%clk 0:01:51]} 59. Kc6 {[%clk 0:00:45]}  Ke3 {[%clk 0:01:50]} 60. Rc2 {[%clk 0:00:43]}  Kf3 {[%clk 0:01:50]} 61. Kc7 {[%clk 0:00:43]} 1-0


[Site "https://www.chess.com"]

[Event "Titled Tuesday Blitz April 19 Early 2022"]
[White "Silva Lucena, Cristian"]
[Black "Brodowski, Piotr"]
[WhiteFideId "2232588"]
[BlackFideId "1124480"]
[WhiteElo "2223"]
[BlackElo "2422"]
[Result "0-1"]
[Round "08"]
[TimeControl "180+1"]
[Date "2022.04.19"]
[WhiteClock "0:00:01"]
[BlackClock "0:00:07"]

1. Nf3 {[%clk 0:03:00]}  c5 {[%clk 0:02:53]} 2. c4 {[%clk 0:02:52]}  Nc6 {[%clk 0:02:51]} 3. d4 {[%clk 0:02:53]}  cxd4 {[%clk 0:02:51]} 4. Nxd4 {[%clk 0:02:54]}  g6 {[%clk 0:02:51]} 5. g3 {[%clk 0:02:54]}  Bg7 {[%clk 0:02:51]} 6. Nc2 {[%clk 0:02:54]}  h5 {[%clk 0:02:50]} 7. h4 {[%clk 0:02:53]}  Nf6 {[%clk 0:02:50]} 8. Bg2 {[%clk 0:02:54]}  O-O {[%clk 0:02:50]} 9. O-O {[%clk 0:02:54]}  d6 {[%clk 0:02:51]} 10. Nc3 {[%clk 0:02:53]}  Ng4 {[%clk 0:02:51]} 11. Bg5 {[%clk 0:02:34]}  Bd7 {[%clk 0:02:47]} 12. Ne3 {[%clk 0:02:27]}  Rc8 {[%clk 0:02:13]} 13. Nxg4 {[%clk 0:02:26]}  Bxg4 {[%clk 0:02:12]} 14. Qd2 {[%clk 0:02:15]}  Kh7 {[%clk 0:01:53]} 15. Rac1 {[%clk 0:02:10]}  Qa5 {[%clk 0:01:45]} 16. b3 {[%clk 0:02:05]}  Rfe8 {[%clk 0:01:31]} 17. Rfe1 {[%clk 0:02:02]}  a6 {[%clk 0:01:27]} 18. Nd5 {[%clk 0:01:55]}  Qxd2 {[%clk 0:01:24]} 19. Bxd2 {[%clk 0:01:56]}  Bd4 {[%clk 0:01:10]} 20. e3 {[%clk 0:01:48]}  Ba7 {[%clk 0:01:10]} 21. Bc3 {[%clk 0:01:45]}  Bd7 {[%clk 0:01:00]} 22. Bb2 {[%clk 0:01:42]}  f6 {[%clk 0:00:42]} 23. Red1 {[%clk 0:01:26]}  Kg7 {[%clk 0:00:35]} 24. Rd2 {[%clk 0:01:05]}  Ne5 {[%clk 0:00:32]} 25. Bxe5 {[%clk 0:00:57]}  fxe5 {[%clk 0:00:32]} 26. Rcd1 {[%clk 0:00:50]}  b5 {[%clk 0:00:30]} 27. Bf1 {[%clk 0:00:45]}  bxc4 {[%clk 0:00:25]} 28. Bxc4 {[%clk 0:00:40]}  a5 {[%clk 0:00:25]} 29. a4 {[%clk 0:00:30]}  Bg4 {[%clk 0:00:09]} 30. Rc1 {[%clk 0:00:23]}  e6 {[%clk 0:00:09]} 31. Nc3 {[%clk 0:00:18]}  d5 {[%clk 0:00:10]} 32. Bb5 {[%clk 0:00:16]}  Re7 {[%clk 0:00:10]} 33. Na2 {[%clk 0:00:13]}  Rec7 {[%clk 0:00:07]} 34. Rxc7+ {[%clk 0:00:11]}  Rxc7 {[%clk 0:00:08]} 35. Kg2 {[%clk 0:00:11]}  e4 {[%clk 0:00:09]} 36. Be2 {[%clk 0:00:10]}  Rb7 {[%clk 0:00:09]} 37. Bxg4 {[%clk 0:00:09]}  hxg4 {[%clk 0:00:09]} 38. Nc1 {[%clk 0:00:09]}  Bb8 {[%clk 0:00:09]} 39. Rc2 {[%clk 0:00:09]}  Bd6 {[%clk 0:00:10]} 40. Rc6 {[%clk 0:00:09]}  Ba3 {[%clk 0:00:10]} 41. Ne2 {[%clk 0:00:08]}  Rxb3 {[%clk 0:00:10]} 42. Nd4 {[%clk 0:00:08]}  Rb2 {[%clk 0:00:09]} 43. Nxe6+ {[%clk 0:00:09]}  Kf7 {[%clk 0:00:09]} 44. Nf4 {[%clk 0:00:09]}  d4 {[%clk 0:00:07]} 45. exd4 {[%clk 0:00:09]}  e3 {[%clk 0:00:07]} 46. Rc7+ {[%clk 0:00:08]}  Ke8 {[%clk 0:00:07]} 47. Nd3 {[%clk 0:00:05]}  Rd2 {[%clk 0:00:07]} 48. Ne5 {[%clk 0:00:01]}  e2 {[%clk 0:00:07]} 0-1


[Site "https://www.chess.com"]

[Event "Titled Tuesday Blitz April 19 Early 2022"]
[White "Skytte, Rasmus"]
[Black "Simonovic, Miroslav"]
[WhiteFideId "1404210"]
[BlackFideId "919152"]
[WhiteElo "2430"]
[BlackElo "2043"]
[Result "1-0"]
[Round "08"]
[TimeControl "180+1"]
[Date "2022.04.19"]
[WhiteClock "0:00:10"]
[BlackClock "0:00:22"]

1. e4 {[%clk 0:03:00]}  c5 {[%clk 0:02:59]} 2. Nf3 {[%clk 0:02:57]}  Nc6 {[%clk 0:03:00]} 3. d4 {[%clk 0:02:54]}  cxd4 {[%clk 0:03:01]} 4. Nxd4 {[%clk 0:02:53]}  e5 {[%clk 0:03:01]} 5. Nb5 {[%clk 0:02:46]}  d6 {[%clk 0:03:01]} 6. c4 {[%clk 0:02:38]}  Be7 {[%clk 0:02:59]} 7. N1c3 {[%clk 0:02:24]}  a6 {[%clk 0:02:58]} 8. Na3 {[%clk 0:02:24]}  Be6 {[%clk 0:02:58]} 9. Be3 {[%clk 0:02:20]}  Nf6 {[%clk 0:02:56]} 10. Be2 {[%clk 0:02:18]}  O-O {[%clk 0:02:56]} 11. O-O {[%clk 0:02:15]}  Rc8 {[%clk 0:02:56]} 12. Qd2 {[%clk 0:02:08]}  Na5 {[%clk 0:02:55]} 13. b3 {[%clk 0:01:59]}  b5 {[%clk 0:02:49]} 14. cxb5 {[%clk 0:01:42]}  d5 {[%clk 0:02:48]} 15. exd5 {[%clk 0:01:41]}  Nxd5 {[%clk 0:02:47]} 16. Nxd5 {[%clk 0:01:38]}  Bxd5 {[%clk 0:02:47]} 17. Nc2 {[%clk 0:01:19]}  axb5 {[%clk 0:02:38]} 18. Rfd1 {[%clk 0:01:12]}  Be4 {[%clk 0:02:17]} 19. Ne1 {[%clk 0:00:56]}  Qxd2 {[%clk 0:02:06]} 20. Bxd2 {[%clk 0:00:57]}  b4 {[%clk 0:02:06]} 21. Nd3 {[%clk 0:00:48]}  Bxd3 {[%clk 0:01:58]} 22. Bxd3 {[%clk 0:00:49]}  Rfd8 {[%clk 0:01:58]} 23. Be3 {[%clk 0:00:42]}  Nc6 {[%clk 0:01:42]} 24. Ba6 {[%clk 0:00:38]}  Rxd1+ {[%clk 0:01:38]} 25. Rxd1 {[%clk 0:00:37]}  Rd8 {[%clk 0:01:34]} 26. Rxd8+ {[%clk 0:00:32]}  Nxd8 {[%clk 0:01:35]} 27. Kf1 {[%clk 0:00:28]}  f5 {[%clk 0:01:29]} 28. Ke2 {[%clk 0:00:27]}  f4 {[%clk 0:01:22]} 29. Bb6 {[%clk 0:00:26]}  Ne6 {[%clk 0:01:19]} 30. Kd3 {[%clk 0:00:26]}  Kf7 {[%clk 0:01:19]} 31. Bc4 {[%clk 0:00:22]}  Kf6 {[%clk 0:01:16]} 32. Ke4 {[%clk 0:00:21]}  Ng5+ {[%clk 0:01:15]} 33. Kd5 {[%clk 0:00:20]}  e4 {[%clk 0:01:15]} 34. Bc5 {[%clk 0:00:18]}  Bxc5 {[%clk 0:01:13]} 35. Kxc5 {[%clk 0:00:18]}  Ke5 {[%clk 0:01:09]} 36. Kxb4 {[%clk 0:00:17]}  Kd4 {[%clk 0:01:06]} 37. a4 {[%clk 0:00:17]}  e3 {[%clk 0:01:03]} 38. fxe3+ {[%clk 0:00:17]}  fxe3 {[%clk 0:01:04]} 39. a5 {[%clk 0:00:18]}  Ne4 {[%clk 0:00:59]} 40. a6 {[%clk 0:00:18]}  Nd6 {[%clk 0:00:55]} 41. Be2 {[%clk 0:00:17]}  Nc8 {[%clk 0:00:54]} 42. Kb5 {[%clk 0:00:16]}  Kc3 {[%clk 0:00:54]} 43. Kc6 {[%clk 0:00:15]}  Kd2 {[%clk 0:00:48]} 44. Bf1 {[%clk 0:00:15]}  e2 {[%clk 0:00:47]} 45. Bxe2 {[%clk 0:00:15]}  Kxe2 {[%clk 0:00:48]} 46. b4 {[%clk 0:00:14]}  Kf2 {[%clk 0:00:47]} 47. b5 {[%clk 0:00:14]}  Kxg2 {[%clk 0:00:47]} 48. b6 {[%clk 0:00:14]}  Kxh2 {[%clk 0:00:46]} 49. a7 {[%clk 0:00:15]}  Nxa7+ {[%clk 0:00:32]} 50. bxa7 {[%clk 0:00:16]}  g5 {[%clk 0:00:31]} 51. a8=Q {[%clk 0:00:17]}  g4 {[%clk 0:00:29]} 52. Qa2+ {[%clk 0:00:15]}  Kh1 {[%clk 0:00:28]} 53. Qb1+ {[%clk 0:00:13]}  Kh2 {[%clk 0:00:28]} 54. Qxh7+ {[%clk 0:00:14]}  Kg2 {[%clk 0:00:28]} 55. Qe4+ {[%clk 0:00:13]}  Kh3 {[%clk 0:00:27]} 56. Qh1+ {[%clk 0:00:11]}  Kg3 {[%clk 0:00:27]} 57. Kd5 {[%clk 0:00:12]}  Kf2 {[%clk 0:00:26]} 58. Qh2+ {[%clk 0:00:10]}  Kf3 {[%clk 0:00:26]} 59. Qg1 {[%clk 0:00:10]}  g3 {[%clk 0:00:27]} 60. Ke5 {[%clk 0:00:10]}  g2 {[%clk 0:00:28]} 61. Kd4 {[%clk 0:00:10]}  Kg3 {[%clk 0:00:28]} 62. Ke3 {[%clk 0:00:10]}  Kg4 {[%clk 0:00:21]} 63. Qxg2+ {[%clk 0:00:10]}  Kf5 {[%clk 0:00:22]} 64. Qe4+ {[%clk 0:00:10]} 1-0


[Site "https://www.chess.com"]

[Event "Titled Tuesday Blitz April 19 Early 2022"]
[White "Sliwicki, Damian"]
[Black "Redor, Menandro"]
[WhiteFideId "1127128"]
[BlackFideId "5222010"]
[WhiteElo "2084"]
[BlackElo "1986"]
[Result "1-0"]
[Round "08"]
[TimeControl "180+1"]
[Date "2022.04.19"]
[WhiteClock "0:01:09"]
[BlackClock "0:00:01"]

1. e4 {[%clk 0:03:00]}  c6 {[%clk 0:02:49]} 2. Nc3 {[%clk 0:02:58]}  d5 {[%clk 0:02:50]} 3. Nf3 {[%clk 0:02:57]}  Bg4 {[%clk 0:02:39]} 4. h3 {[%clk 0:02:56]}  Bxf3 {[%clk 0:02:37]} 5. Qxf3 {[%clk 0:02:55]}  e6 {[%clk 0:02:38]} 6. d3 {[%clk 0:02:55]}  Nd7 {[%clk 0:02:36]} 7. Qg3 {[%clk 0:02:54]}  g6 {[%clk 0:02:26]} 8. Bg5 {[%clk 0:02:43]}  Be7 {[%clk 0:02:22]} 9. Bxe7 {[%clk 0:02:32]}  Nxe7 {[%clk 0:02:23]} 10. O-O-O {[%clk 0:02:30]}  O-O {[%clk 0:02:22]} 11. h4 {[%clk 0:02:30]}  Nf6 {[%clk 0:02:20]} 12. h5 {[%clk 0:02:30]}  Qa5 {[%clk 0:02:04]} 13. Qh4 {[%clk 0:02:17]}  Nxh5 {[%clk 0:01:39]} 14. Qxe7 {[%clk 0:02:12]}  d4 {[%clk 0:01:39]} 15. Nb1 {[%clk 0:02:08]}  Rfe8 {[%clk 0:01:25]} 16. Qa3 {[%clk 0:02:01]}  Qg5+ {[%clk 0:01:21]} 17. Nd2 {[%clk 0:02:00]}  b5 {[%clk 0:01:20]} 18. g3 {[%clk 0:01:59]}  a5 {[%clk 0:01:17]} 19. Be2 {[%clk 0:01:58]}  Ng7 {[%clk 0:01:16]} 20. Qd6 {[%clk 0:01:55]}  c5 {[%clk 0:01:04]} 21. Qf4 {[%clk 0:01:49]}  Qxf4 {[%clk 0:00:59]} 22. gxf4 {[%clk 0:01:49]}  f5 {[%clk 0:00:58]} 23. e5 {[%clk 0:01:47]}  a4 {[%clk 0:00:56]} 24. Nf3 {[%clk 0:01:46]}  Nh5 {[%clk 0:00:50]} 25. Rh4 {[%clk 0:01:41]}  h6 {[%clk 0:00:49]} 26. Rg1 {[%clk 0:01:39]}  Kf7 {[%clk 0:00:47]} 27. Nd2 {[%clk 0:01:35]}  Rg8 {[%clk 0:00:42]} 28. Nf1 {[%clk 0:01:22]}  a3 {[%clk 0:00:35]} 29. b3 {[%clk 0:01:21]}  c4 {[%clk 0:00:23]} 30. dxc4 {[%clk 0:01:20]}  bxc4 {[%clk 0:00:24]} 31. Bxc4 {[%clk 0:01:20]}  Rgc8 {[%clk 0:00:17]} 32. Ng3 {[%clk 0:01:18]}  Ng7 {[%clk 0:00:15]} 33. Rxh6 {[%clk 0:01:16]}  Rh8 {[%clk 0:00:16]} 34. Rgh1 {[%clk 0:01:14]}  Rxh6 {[%clk 0:00:15]} 35. Rxh6 {[%clk 0:01:15]}  Rd8 {[%clk 0:00:14]} 36. Kd2 {[%clk 0:01:14]}  d3 {[%clk 0:00:13]} 37. cxd3 {[%clk 0:01:13]}  Rd4 {[%clk 0:00:13]} 38. Ne2 {[%clk 0:01:13]}  Rd8 {[%clk 0:00:13]} 39. Ke3 {[%clk 0:01:11]}  Re8 {[%clk 0:00:11]} 40. Nd4 {[%clk 0:01:11]}  Re7 {[%clk 0:00:11]} 41. Rh7 {[%clk 0:01:11]}  Kg8 {[%clk 0:00:09]} 42. Rh1 {[%clk 0:01:10]}  Kf7 {[%clk 0:00:09]} 43. Nc6 {[%clk 0:01:09]}  Re8 {[%clk 0:00:06]} 44. d4 {[%clk 0:01:09]}  Nh5 {[%clk 0:00:04]} 45. d5 {[%clk 0:01:09]}  exd5 {[%clk 0:00:03]} 46. Bxd5+ {[%clk 0:01:10]}  Kg7 {[%clk 0:00:04]} 47. Nd4 {[%clk 0:01:10]}  Rc8 {[%clk 0:00:04]} 48. Nxf5+ {[%clk 0:01:08]}  gxf5 {[%clk 0:00:02]} 49. Rxh5 {[%clk 0:01:08]}  Rc2 {[%clk 0:00:01]} 50. b4 {[%clk 0:01:09]} 1-0


[Site "https://www.chess.com"]

[Event "Titled Tuesday Blitz April 19 Early 2022"]
[White "Sovetbekova, Nurai"]
[Black "Demin, Vladimir"]
[WhiteFideId "13801910"]
[BlackFideId "4167457"]
[WhiteElo "1538"]
[BlackElo "2384"]
[Result "0-1"]
[Round "08"]
[TimeControl "180+1"]
[Date "2022.04.19"]
[WhiteClock "0:00:22"]
[BlackClock "0:01:22"]

1. d4 {[%clk 0:02:58]}  Nf6 {[%clk 0:02:57]} 2. c4 {[%clk 0:02:58]}  e5 {[%clk 0:02:57]} 3. dxe5 {[%clk 0:02:57]}  Ng4 {[%clk 0:02:58]} 4. Nf3 {[%clk 0:02:34]}  Bc5 {[%clk 0:02:57]} 5. e3 {[%clk 0:02:32]}  Nc6 {[%clk 0:02:58]} 6. Be2 {[%clk 0:02:27]}  O-O {[%clk 0:02:58]} 7. O-O {[%clk 0:02:26]}  Re8 {[%clk 0:02:56]} 8. Nbd2 {[%clk 0:02:24]}  Ncxe5 {[%clk 0:02:56]} 9. Nxe5 {[%clk 0:02:23]}  Nxe5 {[%clk 0:02:55]} 10. Nf3 {[%clk 0:02:23]}  a5 {[%clk 0:02:55]} 11. b3 {[%clk 0:02:17]}  Ra6 {[%clk 0:02:54]} 12. Bb2 {[%clk 0:02:15]}  Nxf3+ {[%clk 0:02:47]} 13. Bxf3 {[%clk 0:02:16]}  Rh6 {[%clk 0:02:47]} 14. Qd5 {[%clk 0:02:06]}  Qh4 {[%clk 0:02:39]} 15. h3 {[%clk 0:02:00]}  d6 {[%clk 0:02:39]} 16. Rfd1 {[%clk 0:01:16]}  c6 {[%clk 0:02:02]} 17. Qd3 {[%clk 0:01:08]}  Bxh3 {[%clk 0:01:54]} 18. gxh3 {[%clk 0:01:06]}  Qxh3 {[%clk 0:01:55]} 19. Bg2 {[%clk 0:01:04]}  Qh2+ {[%clk 0:01:55]} 20. Kf1 {[%clk 0:01:04]}  Rg6 {[%clk 0:01:56]} 21. Bf3 {[%clk 0:00:50]}  Rxe3 {[%clk 0:01:53]} 22. Qxg6 {[%clk 0:00:33]}  hxg6 {[%clk 0:01:52]} 23. fxe3 {[%clk 0:00:32]}  Qxb2 {[%clk 0:01:28]} 24. Be2 {[%clk 0:00:28]}  Bxe3 {[%clk 0:01:23]} 25. Rab1 {[%clk 0:00:22]}  Qf6+ {[%clk 0:01:23]} 26. Kg2 {[%clk 0:00:22]}  Qf2+ {[%clk 0:01:22]} 0-1


[Site "https://www.chess.com"]